Cogmind - Beta 12 @@@ ROGUE MODE // 2023.04.03 @ 20:13:07 Player: Infomantis Result: Self-destructed Performance ------------- Evolutions (2) 1000 Regions Visited (5) 1000 Robots Destroyed (53) 265 Value Destroyed (1448) 1448 Prototype IDs (24) 480 Alien Tech Used (0) 0 Bonus (300) 300 TOTAL SCORE: 4493 Bonus ------- Aligned with FarCom 300 Cogmind --------- Core Integrity 336/550 Matter 236/300 Energy 140/140 System Corruption 2% Temperature Cool (40) Movement Treading (163) Location -8/Materials Parts ------- > --- POWER (1) -------- Light Deuterium Engine > --- PROPULSION (3) --- Armored Treads Medium Treads Medium Treads > --- UTILITY (4) ------ Large Storage Unit Advanced Targeting Computer Hardened Medium Armor Plating > --- WEAPON (3) ------- High-powered Shotgun Heavy Assault Cannon > --- INVENTORY (15) --- Light Angular Momentum Engine Medium Treads Medium Treads Improved Heat Sink Cooling System High-capacity Storage Unit Superbattery (1500) Experimental Sensor Array Seismic Detector Hardened Medium Armor Plating Hardened Medium Armor Plating Improved Datajack Longsword +1 Heavy Explosive Trap Peak State ------------ > --- POWER ------------ Light Deuterium Engine > --- PROPULSION ------- Light Treads Armored Treads Armored Treads > --- UTILITY ---------- Advanced Heat Sink Large Storage Unit Advanced Targeting Computer Hardened Medium Armor Plating > --- WEAPON ----------- High-powered Shotgun High-powered Shotgun Longsword +1 > --- INVENTORY -------- Light Angular Momentum Engine Light Treads Advanced Treads Improved Heat Sink Cooling System High-capacity Storage Unit Superbattery Experimental Sensor Array Seismic Detector Hardened Medium Armor Plating Hardened Medium Armor Plating Hardened Medium Armor Plating Minigun Improved Datajack Heavy Explosive Trap [Rating: 41] Favorites ----------- Power Ion Engine Engine Ion Engine Power Core Light Nuclear Core Propulsion Light Treads Treads Light Treads Leg Improved Aluminum Leg Wheel Wheel Utility Seismic Detector Device Seismic Detector Storage Small Storage Unit Processor Advanced Targeting Computer Protection Hardened Medium Armor Plating Weapon Assault Rifle Energy Gun Particle Gun Energy Cannon Ion Cannon Ballistic Gun Assault Rifle Ballistic Cannon Heavy Assault Cannon Launcher Rocket Launcher Impact Weapon Heavy Flail Slashing Weapon Longsword +1 Special Melee Weapon Datajack Build | -11 -10 -10 -10 -9 -8 ------- Run | Jun Mat Min Exi Min Mat Slots Evolved 4 | . . . . . 4 Power . | . . . . . . Propulsion 1 | . . . . . 1 Utility 2 | . . . . . 2 Weapon 1 | . . . . . 1 Parts Attached 66 | 8 . 1 . 11 46 Power 9 | 1 . 1 . 2 5 Engine 8 | 1 . 1 . 1 5 Core 1 | . . . . 1 . Reactor . | . . . . . . Propulsion 19 | 2 . . . 3 14 Treads 14 | 2 . . . . 12 Leg 1 | . . . . . 1 Wheel 4 | . . . . 3 1 Hover . | . . . . . . Flight . | . . . . . . Utility 12 | 2 . . . 1 9 Device 6 | 1 . . . . 5 Storage 2 | 1 . . . 1 . Processor 1 | . . . . . 1 Hackware . | . . . . . . Protection 3 | . . . . . 3 Artifact . | . . . . . . Weapon 26 | 3 . . . 5 18 Energy Gun 3 | 1 . . . 1 1 Energy Cannon 1 | . . . . . 1 Ballistic Gun 10 | 2 . . . . 8 Ballistic Cannon 1 | . . . . . 1 Launcher 2 | . . . . 1 1 Special Weapon . | . . . . . . Impact Weapon 1 | . . . . . 1 Slashing Weapon 7 | . . . . 2 5 Piercing Weapon . | . . . . . . Special Melee Weapon 1 | . . . . 1 . Unidentified Prototypes . | . . . . . . Parts Lost 16 | . . 1 . 6 9 Power 3 | . . 1 . 1 1 Propulsion 6 | . . . . 3 3 Utility 4 | . . . . . 4 Weapon 3 | . . . . 2 1 Highest Loss Streak 6 | . . 1 . 6 2 To Critical Strikes . | . . . . . . Average Slot Usage (%) 97 | . 100 99 100 96 94 Engine 9 | . 14 13 14 2 8 Core 2 | . . . . 11 . Treads 23 | . 28 28 28 24 19 Wheel 2 | . . . . 1 5 Device 13 | . 14 14 14 14 12 Storage 11 | . 14 14 14 14 9 Processor 2 | . . . . . 6 Protection 2 | . . . . . 6 Energy Gun 3 | . . . . 10 1 Ballistic Gun 20 | . 28 28 28 13 17 Slashing Weapon 1 | . . . . 1 1 Naked Turns . | . . . . . . Heaviest Build 49 | 14 14 14 14 31 49 Greatest Support 76 | 40 40 40 40 40 76 Greatest Overweight (x) 9 | . . . . 9 4 Average Overweight (x) . | . . . . . 2 Largest Inventory Capacity 15 | 8 8 8 8 15 15 Average Capacity 10 | 7 8 8 8 10 15 Most Carried 15 | 7 8 8 8 13 15 Average Carried 10 | 6 7 7 7 8 14 Final Capacity 15 | 8 8 8 8 15 15 Final Carried 14 | 7 8 8 8 13 14 Class Distribution -------------------- 68% | Mutant 19% | Skirmisher 10% | Scavenger-Mutant Dominant Class ---------------- Mutant | -10/Materials Mutant | -10/Mines Mutant | -10/Exiles Mutant | -9/Mines Skirmisher | -8/Materials Resources | -11 -10 -10 -10 -9 -8 ----------- Run | Jun Mat Min Exi Min Mat Matter Collected 1474 | 428 20 57 . 203 766 Remotely . | . . . . . . Salvage Created 1892 | 301 41 82 . 258 1210 Parts 111 | 22 4 6 . 19 60 Haulers Intercepted 1 | . . . . . 1 Recyclers Shooed . | . . . . . . Parts Field Recycled . | . . . . . . Retrieved Matter . | . . . . . . Parts Self-Destructed . | . . . . . . Prevented . | . . . . . . Kills | -11 -10 -10 -10 -9 -8 ------- Run | Jun Mat Min Exi Min Mat Combat Hostiles Destroyed 34 | . 1 2 . 4 27 Melee 1 | . . . . . 1 Guns 25 | . 1 2 . 3 19 Cannons 7 | . . . . . 7 AOE 1 | . . . . 1 . Classes Destroyed 12 | 3 1 . . 2 6 Worker 2 | 1 . 1 . . . Builder 2 | . . . . 2 . Tunneler 9 | 9 . . . . . Hauler 1 | . . . . . 1 Recycler 4 | 1 . . . 1 2 Watcher 1 | . . . . . 1 Swarmer 7 | . . . . . 7 Grunt 19 | . 1 2 . 3 13 Duelist 2 | . . . . . 2 Sentry 4 | . . . . . 4 Demolisher 1 | . . . . 1 . Heavy 1 | . . . . . 1 Best Kill Streak 5 | 4 1 2 . 3 5 Combat Bots Only 5 | . 1 2 . 3 5 Max Kills in Single Turn 2 | 1 1 1 . 1 2 Gunslinging . | . . . . . . Exploded 1 | . . . . 1 . Melee 1 | . . . . . 1 Uniques/NPCs Destroyed . | . . . . . . Combat | -11 -10 -10 -10 -9 -8 -------- Run | Jun Mat Min Exi Min Mat Damage Taken 2959 | . 109 161 . 695 1994 Core 438 | . . 53 . 171 214 Absorbed by Shields . | . . . . . . Core Remaining (%) 55 | 100 . . . 10 . Volleys Fired 148 | 37 9 9 . 21 72 Largest 3 | 2 2 2 . 2 3 Hottest 123 | 40 40 40 . 85 123 Shots Fired 315 | 74 18 18 . 35 170 Gun 270 | 74 18 18 . 29 131 Cannon 39 | . . . . . 39 Launcher 6 | . . . . 6 . Special . | . . . . . . Kinetic 232 | 74 18 18 . 24 98 Thermal 77 | . . . . 5 72 Explosive 6 | . . . . 6 . Electromagnetic . | . . . . . . Robot Hit Streak 21 | 8 8 10 . 9 21 Robot Miss Streak 6 | 3 4 1 . 3 6 Penetration Max . | . . . . . . Secondary Targets 3 | . . 1 . . 2 Max Gunslinging Chain 1 | . . 1 . . 1 Shots Hit Robots 227 | 47 11 15 . 30 124 Core Hits 92 | 18 2 6 . 9 57 Critical Kills 1 | 1 . . . . . Critical Parts Destroyed . | . . . . . . Critical Strikes 2 | 1 . . . . 1 Burn 1 | . . . . . 1 Destroy 1 | 1 . . . . . Melee Attacks 13 | . . . . 5 8 Impact . | . . . . . . Slashing 13 | . . . . 5 8 Piercing . | . . . . . . Sneak Attacks 4 | . . . . 4 . Combat Hostiles . | . . . . . . Follow-up Attacks . | . . . . . . Damage Inflicted 4078 | 514 98 164 . 708 2594 Guns 2737 | 514 98 151 . 242 1732 Cannons 760 | . . . . . 760 Explosions 44 | . . . . 44 . Melee 516 | . . . . 416 100 Ramming 21 | . . 13 . 6 2 Kinetic 2349 | 514 98 151 . 195 1391 Thermal 1148 | . . . . 47 1101 Explosive 44 | . . . . 44 . Electromagnetic . | . . . . . . Impact . | . . . . . . Slashing 516 | . . . . 416 100 Piercing . | . . . . . . Highest Corruption 2 | . . . . . 2 Average Corruption 2 | . . . . . 2 Corruption Purged . | . . . . . . Corruption Blocked . | . . . . . . Effects 3 | . . . . . 3 Message Errors 1 | . . . . . 1 Energy Discharges 1 | . . . . . 1 Data Loss (minor) 1 | . . . . . 1 Overload Shots . | . . . . . . Overflow Damage 306 | . . . . 301 5 Projectiles 5 | . . . . . 5 Explosions 9 | . . . . 9 . Melee 292 | . . . . 292 . Knockbacks . | . . . . . . Impact . | . . . . . . Kinetic . | . . . . . . Secondary . | . . . . . . Self-Inflicted Damage 118 | . . . . 118 . Shots 4 | . . . . 4 . Rammed 6 | . . 3 . 2 1 Targets Rammed 7 | . . 4 . 2 1 Kicked . | . . . . . . Crushed 1 | . . 1 . . . Highest Temperature 148 | . 6 18 . 148 60 Average Temperature 24 | . 6 10 . 42 12 Received Heat Transfer 969 | . 60 87 . 66 756 Siege Activations . | . . . . . . Robots Corrupted . | . . . . . . Combat Hostiles . | . . . . . . Parts Fried . | . . . . . . Impact Corruptions . | . . . . . . Robots Melted . | . . . . . . Combat Hostiles . | . . . . . . Parts Melted 3 | . . . . . 3 Heat Transferred 2257 | . . . . 111 2146 Parts Sabotaged . | . . . . . . Parts Stolen . | . . . . . . Parts Stripped . | . . . . . . Power Chain Reactions . | . . . . . . Missiles Intercepted . | . . . . . . Alert | -11 -10 -10 -10 -9 -8 ------- Run | Jun Mat Min Exi Min Mat Peak Influence 367 | 55 65 80 . 70 367 Initial 25 | . . 25 . . 9 Average 96 | 15 32 35 . 27 201 Maximum Alert Level 1 | . . . . . 1 Low Security (%) 79 | 100 100 100 . 100 49 Level 1 20 | . . . . . 50 Level 2 . | . . . . . . Level 3 . | . . . . . . Level 4 . | . . . . . . Level 5 . | . . . . . . High Security . | . . . . . . Max Security . | . . . . . . Squads Dispatched 7 | . 2 . . . 5 Investigation 3 | . 1 . . . 2 Extermination . | . . . . . . Reinforcement 4 | . 1 . . . 3 Assault . | . . . . . . Garrison . | . . . . . . Intercept . | . . . . . . Searches Triggered . | . . . . . . Construction Impeded . | . . . . . . Haulers Reinforced . | . . . . . . Active Scanning Responses . | . . . . . . Cargo Convoy Interrupts . | . . . . . . Stealth | -11 -10 -10 -10 -9 -8 --------- Run | Jun Mat Min Exi Min Mat Distress Signals 6 | . 1 . . . 5 Communications Jammed . | . . . . . . Distress Signals . | . . . . . . Times Spotted 59 | . 6 2 . 4 47 Peak Tracking Total 7 | . 4 2 . 3 7 Tactical Retreats 3 | . . . . . 3 Traps | -11 -10 -10 -10 -9 -8 ------- Run | Jun Mat Min Exi Min Mat Traps Triggered 2 | . . . . . 2 Indirectly . | . . . . . . Trap Hack Attempts . | . . . . . . Triggered . | . . . . . . Disarmed . | . . . . . . Reprogrammed . | . . . . . . Reused . | . . . . . . Traps Extracted . | . . . . . . Installed 2 | . . . . 1 1 Triggered . | . . . . . . Most Traps Carried 4 | . . . . 4 4 Machines | -11 -10 -10 -10 -9 -8 ---------- Run | Jun Mat Min Exi Min Mat Machines Disabled 2 | . . . . . 2 Max in Single Turn 1 | . . . . . 1 Machines Repaired . | . . . . . . Machines Sabotaged . | . . . . . . Overloaded Fab Kills . | . . . . . . Hacking | -11 -10 -10 -10 -9 -8 --------- Run | Jun Mat Min Exi Min Mat Machines Accessed 11 | . 3 . 2 . 6 Terminals 6 | . 2 . . . 4 Fabricators . | . . . . . . Repair Stations . | . . . . . . Recycling Units 1 | . 1 . . . . Scanalyzers 2 | . . . . . 2 Garrison Access . | . . . . . . Total Hacks 27 | . 7 . 2 . 18 Successful 18 | . 5 . 2 . 11 Failed 9 | . 2 . . . 7 Catastrophic 1 | . . . . . 1 Database Lockouts . | . . . . . . Manual 7 | . 5 . 1 . 1 Terminals 14 | . 6 . . . 8 Fabricators . | . . . . . . Repair Stations . | . . . . . . Recycling Units 1 | . 1 . . . . Scanalyzers 10 | . . . . . 10 Garrison Access . | . . . . . . Terminal Hacks 10 | . 3 . 2 . 5 Record 2 | . 1 . 1 . . Part Schematic 1 | . 1 . . . . Robot Analysis 1 | . . . . . 1 Branch Access Points 2 | . 1 . . . 1 Terminal Index 1 | . . . . . 1 Dispatch Records 1 | . . . . . 1 Reinforcement Status 1 | . . . . . 1 EX-Prototype ID Bank 1 | . . . 1 . . Fabricator Hacks . | . . . . . . Repair Station Hacks . | . . . . . . Recycling Unit Hacks . | . . . . . . Scanalyzer 5 | . . . . . 5 Insert Component 4 | . . . . . 4 Analyze 1 | . . . . . 1 Garrison Access Hacks . | . . . . . . Unauthorized Hacks 3 | . 2 . . . 1 Terminals 2 | . 1 . . . 1 Botnet 1 | . . . . . 1 Disrupt 1 | . 1 . . . . Fabricators . | . . . . . . Repair Stations . | . . . . . . Recycling Units 1 | . 1 . . . . Tunnel 1 | . 1 . . . . Scanalyzers . | . . . . . . Garrison Access . | . . . . . . Data Cores Recovered . | . . . . . . Used . | . . . . . . Hacking Detections 5 | . . . . . 5 Full Trace Events 2 | . . . . . 2 Feedback Events . | . . . . . . Feedback Blocked . | . . . . . . Robot Schematics Acquired . | . . . . . . Robots Built . | . . . . . . Authchips . | . . . . . . Time . | . . . . . . Total Robot Build Rating . | . . . . . . Part Schematics Acquired 1 | . 1 . . . . Parts Built . | . . . . . . Authchips . | . . . . . . Time . | . . . . . . Total Part Build Rating . | . . . . . . Parts Repaired . | . . . . . . Time . | . . . . . . Parts Recycled . | . . . . . . Recycled Matter . | . . . . . . Retrieved Matter . | . . . . . . Retrieved Components . | . . . . . . Parts Scanalyzed 1 | . . . . . 1 Part Schematics Acquired . | . . . . . . Parts Damaged . | . . . . . . Bothacking | -11 -10 -10 -10 -9 -8 ------------ Run | Jun Mat Min Exi Min Mat Used RIF Installer . | . . . . . . Robots Hacked . | . . . . . . Non-combat . | . . . . . . Combat . | . . . . . . Robot Hacks Applied . | . . . . . . Relay Couplers Released . | . . . . . . Fabnet Peak Effective % . | . . . . . . Robots Rewired . | . . . . . . Allies Hacked . | . . . . . . Hacks Repelled . | . . . . . . Allies | -11 -10 -10 -10 -9 -8 -------- Run | Jun Mat Min Exi Min Mat Total Allies 2 | . . 2 . . . Largest Group 2 | . . 2 2 . . Highest-Rated Group 42 | . . 42 42 . . Highest-Rated Ally 31 | . . 31 31 . . Total Orders . | . . . . . . Ally Attacks . | . . . . . . Total Damage . | . . . . . . Kills . | . . . . . . Allies Corrupted . | . . . . . . Allies Melted . | . . . . . . Intel | -11 -10 -10 -10 -9 -8 ------- Run | Jun Mat Min Exi Min Mat Robot Analysis Total 1 | . . . . . 1 Derelict Logs Recovered 3 | . . 1 . 2 . Drone Launches . | . . . . . . Drone Recoveries . | . . . . . . Exploration | -11 -10 -10 -10 -9 -8 ------------- Run | Jun Mat Min Exi Min Mat Turns Passed 5373 | 788 228 897 610 948 1902 Spaces Moved 2799 | 196 117 526 379 523 1058 Core 11 | 6 . . . 5 . Treads 2022 | 190 117 526 379 468 342 Legs . | . . . . . . Wheels 766 | . . . . 50 716 Hover . | . . . . . . Flight . | . . . . . . Fastest Speed 50 | 50 160 160 160 105 105 Average Speed 153 | 156 160 160 160 158 145 Slowest Speed 500 | 160 160 160 160 500 250 Overloaded Moves . | . . . . . . Propulsion Burnouts . | . . . . . . Robots Hopped . | . . . . . . Cave-ins Triggered . | . . . . . . Exploration Rate (%) 58 | 9 29 88 71 65 88 Regions Visited 5 Branch Regions 3 Pre-discovered Areas 5 | . 1 2 1 1 . Known Exits Taken 1 | . 1 . . . . Unknown Exits Taken 4 | 1 . 1 1 1 . Scrap Searched 4 | . . . . 4 . Spaces Dug 6 | . . . . . 6 Terrain Destroyed 47 | . . . . 36 11 Melee 6 | . . . . . 6 Projectile 5 | . . . . . 5 AOE 36 | . . . . 36 . Terrain Rammed . | . . . . . . Walls Destroyed . | . . . . . . Machines Disabled . | . . . . . . Actions | -11 -10 -10 -10 -9 -8 --------- Run | Jun Mat Min Exi Min Mat Total 3575 | 607 143 565 384 601 1275 Wait 458 | 360 13 20 . 25 40 Move 2794 | 195 116 525 378 522 1058 Hop . | . . . . . . Pick Up 41 | 7 3 3 3 8 17 Fast Attach 34 | 7 . 1 . 5 21 Attach 10 | . . . . 4 6 Detach 4 | . . . . 2 2 Swap 22 | 1 . . . 2 19 Drop 42 | . 2 3 3 4 30 Fire 148 | 37 9 9 . 21 72 Melee 13 | . . . . 5 8 Ram 1 | . . . . 1 . Kick . | . . . . . . Crush 6 | . . 4 . 1 1 Escape Stasis . | . . . . . . Rewire . | . . . . . . Trap 2 | . . . . 1 1 Miscellaneous . | . . . . . . Route ------- -11/Junkyard -10/Materials (discovered 2 exits: *Min x2) -10/Mines (discovered 3 exits: [*Mat x2] / *Exi) -10/Exiles (discovered 2 exits: [*Min x2]) -9/Mines (discovered 2 exits: *Mat x2) -8/Materials (discovered 5 exits: [*Fac x3] / *Sto x2) History --------- Turn | Location | Event 45 | -11/Junkyard | Discovered new exit (range 16) 789 | -11/Junkyard | Entered Materials 790 | -10/Materials | Build established: Mutant 803 | -10/Materials | Identified exit to Mines 1017 | -10/Materials | Entered Mines 1217 | -10/Mines | Found a damaged Exp. Sensor Array with a note attached 1221 | -10/Mines | Found Prototype Device 1293 | -10/Mines | Received a Rocket Launcher from a helpful Derelict 1432 | -10/Mines | Learned location of Storage (-8) 1500 | -10/Mines | Deemed a non-threat by the Exiles lab entrance 1502 | -10/Mines | Discovered new exit (range 5) 1575 | -10/Mines | Discovered new exit (range 9) 1727 | -10/Mines | Discovered new exit (range 5) 1914 | -10/Mines | Entered Exiles 1914 | -10/Exiles | Accompanied by 2 allies 1938 | -10/Exiles | Discovered new exit (range 15) 1944 | -10/Exiles | Led the pair of lost Derelicts to a safe place 2004 | -10/Exiles | Met 8R-AWN 2026 | -10/Exiles | Met EX-HEX 2097 | -10/Exiles | Met EX-DEC 2201 | -10/Exiles | Learned location of Zion (-7) 2233 | -10/Exiles | Met EX-BIN 2255 | -10/Exiles | Aligned with FarCom system 2257 | -10/Exiles | Given EX-Vault access code 2294 | -10/Exiles | Opened EX-Vault 2310 | -10/Exiles | Found Superbattery 2315 | -10/Exiles | Found Longsword +1 2346 | -10/Exiles | Warned to stay clear of 0b10 Research branches 2506 | -10/Exiles | Discovered new exit (range 11) 2524 | -10/Exiles | Stole two prototypes: Superbattery, Longsword +1 2524 | -10/Exiles | Entered Mines 2527 | -9/Mines | Met a Derelict bent on vengeance 2636 | -9/Mines | Assembled infested the area 2745 | -9/Mines | Found a hidden stash of uninstalled traps 2767 | -9/Mines | Learned Materials emergency access door positions 3048 | -9/Mines | Discovered new exit (range 8) 3129 | -9/Mines | Discovered new exit (range 7) 3358 | -9/Mines | Core integrity fell below 50% 3367 | -9/Mines | Core integrity fell below 20% 3398 | -9/Mines | Lost 6 parts (1p3n2w) 3472 | -9/Mines | Entered Materials 3472 | -8/Materials | Evolved 4 slots: Propulsion x1, Utility x2, Weapon x1 3579 | -8/Materials | Discovered new exit (range 16) 3768 | -8/Materials | Build established: Scavenger-Mutant 4330 | -8/Materials | Discovered new exit (range 10) 4377 | -8/Materials | Build established: Skirmisher 4493 | -8/Materials | Identified exit to Storage 4559 | -8/Materials | Discovered new exit (range 16) 5086 | -8/Materials | Identified Exp. Sensor Array 5277 | -8/Materials | Discovered new exit (range 16) 5374 | -8/Materials | Self-destructed Last Messages --------------- 05277_ EXIT=FOUND 05279_ K-01 Serf collects debris. 05283_ Penetrated by Slug. 05283_ K-01 Serf collects debris. 05289_ Hpw. Shotgun blasted off. 05291_ H-61 Shepherd calls for reinforcements. 05291_ ALERT: Hostile activity reported, dispatching reinforcements to area. 05291_ Penetrated by Slug. 05291_ Hrd. Medium Armor Plating destroyed. 05299_ Penetrated by Slug. 05307_ H-61 Shepherd destroyed. 05321_ Acquired 48 matter. 05338_ Dropped Minigun. 05338_ Acquired Hvy. Assault Cannon. 05352_ Acquired 10 matter. 05354_ Acquired 8 matter. 05355_ Acquired 5 matter. 05363_ Slug penetrates Y-45 Defender. 05370_ Adv. Heat Sink destroyed. 05371_ Critical hit (Burn: +37). Map ----- +----------------------------------------------------+ | ????#! ####### #????????????##"#"# | | ????# ???????????# # | | ????# T ??????????# T # | | ????# ?????????# # | | ????# ## ####### ?????????# ] # | | ?##### ###+## ??????????# + | | #= # # # ???????????# # | | # + + !!# ???????????# # | | # # # ]# ????????????# # | | # # # # ?????????????# # | | #==!?# # !!## #?????????????###### | | #=! ?+ # ## #??????????????????# | | #=!??# #! ## #??????????????????# | | # ??# ####### [#####??????????????# | | #!???# ####### ! ===#??????????????# | | ##???# [== #??????????????# | | ?????# g !!#??????????????# | | ?????# g !!#??????????????# | | ?????###+####g## ==#??????????????# | | ??????# # ==#??????????????# | | ??????# """"" # "####??????????????# | | ??????# """"" # #??????????????????# | | ??????# """"" |# #??????????????????# | | ??????# # %#??????????????????# | | ??????# !!/ # ##?????????????????# | | ??????# !!/ @#% "#?????????????????# | | ??????#% !/ ; %"##????????????????# | | ??????# Y # T#????????????????# | | ??????#% ####### ""#????????????????# | | ??????#????????# ;##????????????????# | | ???????????????# [##?????????????????# | | ???????????????# #??????????????????# | | ??????########## ###????????????????# | | ??????# # " #??????????????### | | ??????# ! # "##??????????????# | | ??????# ! # "#???????????????# | | ??????# # ##???????????????# | | ??????# *! + #????????????????# | | ??????# *! # <[#????????????????# | | ??????# *! # #????????????????# | | ??????# #####????????????????# | | ??????# #????????????????????# | | ??????##########????????????????????# | | ????????????????????????????????????### | | ??????????????????????????????????????? | | | | | | | | | | | +----------------------------------------------------+ Best States ------------- Heat Dissipation 64 Energy Generation 18 Energy Capacity 265 Matter Stores 300 Matter Capacity 300 Sight Range 16 Terrain Scan Density 10 Armor Coverage 225 Evasion (%) 40 Targeting Accuracy 8 Recoil Reduction 3 Item Schematics ----------------- Hcp. Storage Unit | -10/Materials | Hacked Robot Schematics ------------------ None Fabricated ------------ Nothing Alien Tech Used ----------------- None Achievements -------------- None Challenges ------------ None Game ------ Seed BarrageMachineCleaver Manual? 0 Play Time 00:36:32 Cumulative 338.7 hours Start 2023.04.03 @ 19:25:36 End 2023.04.03 @ 20:13:07 Sessions 1 Manual Loads 0 Difficulty Rogue Special Mode None Game No. 220 Rogue 197 Adventurer 6 Explorer 17 Win Type - Total 25 Types 17/0/4/1/0/1/1/1/0 Lore% 95 Gallery% 95 Achievement% 78 Wizard Run 0 Options --------- ASCII 0 Keyboard 0 Movement Numpad Keybinds 0 Fullscreen 1 Font 12/Fuzzy Map View 83x54 Tactical HUD 1 Map Filters NONE Filters NONE Steam 1 RUN: 24508e1a-9b24-45cb-92c9-0a8b98efc458